fUSD/lending_fUSD_20240117
["ID","MTS","AMOUNT","RATE_DAILY","PERIOD"]
[311876353,1705483849900,-500.0,0.00021917,2]
[311876354,1705483849909,-862.2,0.00021917,2]
[311876355,1705483849919,-500.0,0.00021917,2]
[311876356,1705483849928,-1251.17,0.00021917,2]
[311876357,1705483849938,-500.0,0.00021917,2]
[311876358,1705483849948,-500.0,0.00021917,2]
[311876359,1705483849958,-967.7,0.00021917,2]
[311876360,1705483849968,-1333.11,0.00021917,2]
[311876361,1705483849978,-500.0,0.00021917,2]
[311876362,1705483849988,-500.0,0.00021917,2]
[311876363,1705483849997,-2075.84,0.00021917,2]
[311876364,1705483850007,-1096.58,0.00021917,2]
[311876365,1705483850017,-500.0,0.00021917,2]
[311876366,1705483850027,-500.0,0.00021917,2]
[311876367,1705483850037,-1031.39,0.00021917,2]
[311876368,1705483850047,-500.0,0.00021917,2]
[311876369,1705483850057,-1112.77,0.00021917,2]
[311876370,1705483850067,-902.77,0.00021917,2]
[311876371,1705483850077,-500.0,0.00021917,2]
[311876372,1705483850087,-800.18,0.00021917,2]
[311876373,1705483850097,-510.02,0.00021917,2]
[311876374,1705483850108,-500.0,0.00021917,2]
[311876375,1705483850118,-1430.77,0.00021917,2]
[311876376,1705483850128,-1032.11,0.00021917,2]
[311876377,1705483850138,-500.0,0.00021917,2]
[311876378,1705483850149,-500.0,0.00021917,2]
[311876379,1705483850158,-500.0,0.00021917,2]
[311876380,1705483850168,-500.0,0.00021917,2]
[311876381,1705483850178,-649.37,0.00021917,2]
[311876382,1705483850188,-505.61285147,0.00021917,2]
[311876383,1705483850198,-1447.32,0.00021917,2]
[311876384,1705483850208,-509.82787492,0.00021917,2]
[311876385,1705483850218,-808.22,0.00021917,2]
[311876386,1705483850228,-504.74417702,0.00021917,2]
[311876387,1705483850238,-500.0,0.00021917,2]
[311876388,1705483850248,-772.59,0.00021917,2]
[311876389,1705483850258,-723.38,0.00021917,2]
[311876390,1705483850268,-500.0,0.00021917,2]
[311876391,1705483850279,-500.0,0.00021917,2]
[311876392,1705483850289,-500.0,0.00021917,2]
[311876393,1705483850298,-1371.34,0.00021917,2]
[311876394,1705483850308,-500.0,0.00021917,2]
[311876395,1705483850318,-831.96,0.00021917,2]
[311876396,1705483850328,-607.31,0.00021917,2]
[311876397,1705483850338,-500.0,0.00021917,2]
[311876398,1705483850349,-500.0,0.00021917,2]
[311876399,1705483850359,-500.0,0.00021917,2]
[311876400,1705483850369,-2548.22,0.00021917,2]
[311876401,1705483850379,-815.03,0.00021917,2]
[311876402,1705483850390,-839.27,0.00021917,2]
[311876403,1705483850400,-500.0,0.00021917,2]
[311876404,1705483850409,-507.75464987,0.00021917,2]
[311876405,1705483850419,-679.67,0.00021917,2]
[311876406,1705483850429,-505.95540026,0.00021917,2]
[311876407,1705483850439,-500.0,0.00021917,2]
[311876408,1705483850449,-2322.15,0.00021917,2]
[311876409,1705483850458,-971.3,0.00021917,2]
[311876410,1705483850468,-500.0,0.00021917,2]
[311876411,1705483850478,-500.0,0.00021917,2]
[311876412,1705483850488,-443.49288994,0.00021917,2]
[311876413,1705483850498,-500.0,0.00021917,2]
[311876414,1705483850508,-581.69,0.00021917,2]
[311876415,1705483850523,-500.0,0.00021917,2]
[311876416,1705483850533,-500.0,0.00021917,2]
[311876417,1705483850543,-500.0,0.00021917,2]
[311876418,1705483850553,-500.0,0.00021917,2]
[311876419,1705483850563,-500.0,0.00021917,2]
[311876420,1705483850573,-2572.43,0.00021917,2]
[311876421,1705483850583,-500.0,0.00021917,2]
[311876422,1705483850593,-500.0,0.00021917,2]
[311876423,1705483850603,-500.0,0.00021917,2]
[311876424,1705483850614,-1239.89,0.00021917,2]
[311876425,1705483850624,-707.73,0.00021917,2]
[311876426,1705483850633,-500.0,0.00021917,2]
[311876427,1705483850643,-500.0,0.00021917,2]
[311876428,1705483850653,-500.0,0.00021917,2]
[311876429,1705483850664,-500.0,0.00021917,2]
[311876430,1705483850675,-510.7773639,0.00021917,2]
[311876431,1705483850685,-500.0,0.00021917,2]
[311876432,1705483850695,-515.41179947,0.00021917,2]
[311876433,1705483850705,-817.5,0.00021917,2]
[311876434,1705483850715,-500.0,0.00021917,2]
[311876435,1705483850726,-316.91683447,0.00021917,2]
[311876436,1705483850736,-827.29,0.00021917,2]
[311876437,1705483850746,-500.0,0.00021917,2]
[311876438,1705483850756,-1266.26,0.00021917,2]
[311876439,1705483850767,-500.0,0.00021917,2]
[311876440,1705483850777,-500.0,0.00021917,2]
[311876441,1705483850788,-508.02,0.00021917,2]
[311876442,1705483850799,-500.0,0.00021917,2]
[311876443,1705483850809,-563.50004944,0.00021917,2]
[311876444,1705483850820,-500.0,0.00021917,2]
[311876445,1705483850862,-770.21,0.00021917,2]
[311876446,1705483850894,-500.0,0.00021917,2]
[311876447,1705483850904,-500.0,0.00021917,2]
[311876448,1705483850914,-796.23,0.00021917,2]
[311876449,1705483850924,-1172.13,0.00021917,2]
[311876450,1705483850934,-530.6,0.00021917,2]
[311876451,1705483850944,-948.8,0.00021917,2]
[311876452,1705483850955,-610.83,0.00021917,2]
[311876453,1705483850965,-1356.34,0.00021917,2]
[311876454,1705483850975,-500.0,0.00021917,2]
[311876455,1705483850985,-500.0,0.00021917,2]
[311876456,1705483850995,-500.0,0.00021917,2]
[311876457,1705483851005,-2162.19,0.00021917,2]
[311876458,1705483851014,-1952.71,0.00021917,2]
[311876459,1705483851025,-1224.12,0.00021917,2]
[311876460,1705483851034,-500.0,0.00021917,2]
[311876461,1705483851044,-968.15,0.00021917,2]
[311876462,1705483851054,-1143.58,0.00021917,2]
[311876463,1705483851063,-500.0,0.00021917,2]
[311876464,1705483851073,-500.0,0.00021917,2]
[311876465,1705483851083,-500.0,0.00021917,2]
[311876466,1705483851092,-500.0,0.00021917,2]
[311876467,1705483851103,-3101.62,0.00021917,2]
[311876468,1705483851112,-754.55,0.00021917,2]
[311876469,1705483851122,-500.0,0.00021917,2]
[311876470,1705483851131,-1971.11,0.00021917,2]
[311876471,1705483851141,-1050.59,0.00021917,2]
[311876472,1705483851150,-1159.58,0.00021917,2]
[311876473,1705483851160,-762.74,0.00021917,2]
[311876474,1705483851169,-500.0,0.00021917,2]
[311876475,1705483851179,-500.0,0.00021917,2]
[311876476,1705483851189,-500.0,0.00021917,2]
[311876477,1705483851198,-1056.0,0.00021917,2]
[311876478,1705483851208,-1159.83,0.00021917,2]
[311876479,1705483851507,-500.0,0.00021917,2]
[311876480,1705483851574,-500.0,0.00021917,2]
[311876481,1705483851584,-500.0,0.00021917,2]
[311876482,1705483851594,-2593.19,0.00021917,2]
[311876483,1705483851605,-963.52,0.00021917,2]
[311876484,1705483851614,-658.45,0.00021917,2]
[311876485,1705483851624,-1139.71,0.00021917,2]
[311876486,1705483851634,-500.0,0.00021917,2]
[311876487,1705483851643,-559.38,0.00021917,2]
[311876488,1705483851653,-715.98,0.00021917,2]
[311876489,1705483851662,-500.0,0.00021917,2]
[311876490,1705483851671,-1419.46,0.00021917,2]
[311876491,1705483851681,-500.0,0.00021917,2]
[311876492,1705483851690,-500.0,0.00021917,2]
[311876493,1705483851699,-500.0,0.00021917,2]
[311876494,1705483851709,-1869.4,0.00021917,2]
[311876495,1705483851719,-1262.11,0.00021917,2]
[311876496,1705483851728,-707.5,0.00021917,2]
[311876497,1705483851738,-500.0,0.00021917,2]
[311876498,1705483851747,-500.0,0.00021917,2]
[311876499,1705483851756,-500.0,0.00021917,2]
[311876500,1705483851766,-500.0,0.00021917,2]
[311876501,1705483851776,-500.0,0.00021917,2]
[311876502,1705483851786,-1140.37,0.00021917,2]
[311876503,1705483851797,-500.0,0.00021917,2]
[311876504,1705483851807,-1015.67,0.00021917,2]
[311876505,1705483851816,-2877.26,0.00021917,2]
[311876506,1705483851826,-949.74,0.00021917,2]
[311876507,1705483851835,-572.41,0.00021917,2]
[311876508,1705483851845,-912.73,0.00021917,2]
[311876509,1705483851856,-500.0,0.00021917,2]
[311876510,1705483851865,-1208.79,0.00021917,2]
[311876511,1705483851875,-1077.44,0.00021917,2]
[311876512,1705483851885,-1359.43,0.00021917,2]
[311876513,1705483851895,-500.0,0.00021917,2]
[311876514,1705483851906,-500.0,0.00021917,2]
[311876515,1705483851915,-500.0,0.00021917,2]
[311876516,1705483851926,-1776.37,0.00021917,2]
[311876517,1705483851936,-688.2,0.00021917,2]
[311876518,1705483851945,-500.0,0.00021917,2]
[311876519,1705483851956,-500.0,0.00021917,2]
[311876520,1705483851965,-500.0,0.00021917,2]
[311876521,1705483851975,-500.0,0.00021917,2]
[311876522,1705483851985,-722.08,0.00021917,2]
[311876523,1705483851995,-500.0,0.00021917,2]
[311876524,1705483852005,-641.84,0.00021917,2]
[311876525,1705483852016,-868.5,0.00021917,2]
[311876526,1705483852025,-500.0,0.00021917,2]
[311876527,1705483852035,-1034.93,0.00021917,2]
[311876528,1705483852044,-1965.92,0.00021917,2]
[311876529,1705483852054,-687.83,0.00021917,2]
[311876530,1705483852063,-500.0,0.00021917,2]
[311876531,1705483852073,-839.95,0.00021917,2]
[311876532,1705483852082,-3509.41,0.00021917,5]
[311876533,1705483852092,-500.0,0.00021917,2]
[311876534,1705483852102,-529.67,0.00021917,2]
[311876535,1705483852111,-769.08,0.00021917,2]
[311876536,1705483852120,-500.0,0.00021917,2]
[311876537,1705483852130,-516.42,0.00021917,2]
[311876538,1705483852139,-500.0,0.00021917,2]
[311876539,1705483852149,-1095.96,0.00021917,2]
[311876540,1705483852158,-994.34,0.00021917,2]
[311876541,1705483852167,-500.0,0.00021917,2]
[311876542,1705483852177,-525.37,0.00021917,2]
[311876543,1705483852186,-500.0,0.00021917,2]
[311876544,1705483852195,-500.0,0.00021917,2]
[311876545,1705483852204,-500.0,0.00021917,2]
[311876546,1705483852213,-500.0,0.00021917,2]
[311876547,1705483852223,-594.53,0.00021917,2]
[311876548,1705483852233,-640.75,0.00021917,2]
[311876549,1705483852242,-500.0,0.00021917,2]
[311876550,1705483852251,-804.01,0.00021917,2]
[311876551,1705483852261,-1217.5,0.00021917,2]
[311876552,1705483852270,-576.97,0.00021917,2]
[311876553,1705483852280,-500.0,0.00021917,2]
[311876554,1705483852288,-1483.42,0.00021917,2]
[311876555,1705483852298,-11284.74,0.00021917,2]
[311876556,1705483852307,-1136.57,0.00021917,2]
[311876557,1705483852317,-998.11,0.00021917,2]
[311876558,1705483852326,-1346.68,0.00021917,2]
[311876559,1705483852336,-2690.15,0.00021917,2]
[311876560,1705483852345,-2310.99,0.00021917,2]
[311876561,1705483852355,-500.0,0.00021917,2]
[311876562,1705483852365,-500.0,0.00021917,2]
[311876563,1705483852374,-500.0,0.00021917,2]
[311876564,1705483852383,-588.09,0.00021917,2]
[311876565,1705483852393,-1841.48,0.00021917,2]
[311876566,1705483852402,-3400.28,0.00021917,2]
[311876567,1705483852411,-1191.92,0.00021917,2]
[311876568,1705483852421,-500.0,0.00021917,2]
[311876569,1705483852430,-616.17709739,0.00021917,2]
[311876570,1705483852461,-1368.75290261,0.00021917,2]
[311876571,1705483852470,-500.0,0.00021917,2]
[311876572,1705483852479,-579.4,0.00021917,2]
[311876573,1705483852489,-503.61,0.00021917,2]
[311876574,1705483852498,-14054.96,0.00021917,2]
[311876575,1705483852507,-500.0,0.00021917,2]
[311876576,1705483852517,-150.0,0.00021917,2]
[311876577,1705483852528,-764.66,0.00021917,2]
[311876578,1705483852538,-500.0,0.00021917,2]
[311876579,1705483852547,-859.64,0.00021917,2]
[311876580,1705483852556,-1396.14,0.00021917,2]
[311876581,1705483852566,-13381.43,0.00021917,2]
[311876582,1705483852575,-500.0,0.00021917,2]
[311876583,1705483852584,-2576.34,0.00021917,2]
[311876584,1705483852593,-801.13,0.00021917,2]
[311876585,1705483852604,-1606.74,0.00021917,2]
[311876586,1705483852613,-1110.13,0.00021917,2]
[311876587,1705483852622,-500.0,0.00021917,2]
[311876588,1705483852632,-1048.5,0.00021917,2]
[311876589,1705483852641,-500.0,0.00021917,2]
[311876590,1705483852651,-692.72,0.00021917,2]
[311876591,1705483852661,-500.0,0.00021917,2]
[311876592,1705483852671,-500.0,0.00021917,2]
[311876593,1705483852680,-812.25,0.00021917,2]
[311876594,1705483852689,-500.0,0.00021917,2]
[311876595,1705483852698,-717.86,0.00021917,2]
[311876596,1705483852707,-627.57,0.00021917,2]
[311876597,1705483852716,-500.0,0.00021917,2]
[311876598,1705483852726,-4524.25,0.00021917,2]
[311876599,1705483852735,-2279.44,0.00021917,2]
[311876600,1705483852744,-500.0,0.00021917,2]
[311876601,1705483852754,-4362.99,0.00021917,2]
[311876602,1705483852763,-500.0,0.00021917,2]
[311876603,1705483852772,-2658.06,0.00021917,2]
[311876604,1705483852781,-500.0,0.00021917,2]
[311876605,1705483852790,-686.99,0.00021917,2]
[311876606,1705483852799,-525.59,0.00021917,2]
[311876607,1705483852808,-500.0,0.00021917,2]
[311876608,1705483852818,-927.44,0.00021917,2]
[311876609,1705483852827,-500.0,0.00021917,2]
[311876610,1705483852836,-500.0,0.00021917,2]
[311876611,1705483852845,-500.0,0.00021917,2]
[311876612,1705483852855,-1136.58,0.00021917,2]
[311876613,1705483852864,-500.0,0.00021917,2]
[311876614,1705483852873,-16515.81851861,0.00021917,2]
[311876615,1705483852891,-428.34067,0.00021917,2]
[311876616,1705483852902,-889.95428598,0.00021917,2]
[311876617,1705483852913,-923.29501141,0.00021917,2]
[311876618,1705483852947,-7378.38208233,0.00021917,2]
[311876619,1705483878493,292.62823719,0.00017706,2]
[311876620,1705483905932,500.0,0.00021917,15]
[311876621,1705483917650,266.06,0.00019153,2]
[311876624,1705484175749,3988.74204382,0.00019724,5]
[311876626,1705484293074,-500.0,0.00021917,7]
[311876627,1705484293103,-564.78,0.00021917,7]
[311876628,1705484293180,-564.78,0.00022191,7]
[311876629,1705484293227,-151.0,0.00022465,7]
[311876630,1705484293250,-151.0,0.00022465,7]
[311876631,1705484293272,-151.0,0.00022465,7]
[311876632,1705484293296,-164.21752,0.00022465,7]
[311876633,1705484293320,-274.315794,0.00022465,7]
[311876634,1705484293365,-564.78,0.00022465,7]
[311876635,1705484293409,-500.0,0.00022705,7]
[311876636,1705484293452,-564.78,0.00022739,7]
[311876637,1705484293512,-564.78,0.00023013,7]
[311876638,1705484293573,-564.78,0.00023287,7]
[311876639,1705484294082,-564.78,0.00023561,7]
[311876640,1705484294142,-564.78,0.00023835,7]
[311876641,1705484294183,-500.0,0.00023921,7]
[311876642,1705484294222,-564.78,0.00024109,7]
[311876643,1705484294284,-564.78,0.00024383,7]
[311876644,1705484294342,-564.78,0.00024657,7]
[311876645,1705484294397,-564.78,0.00024931,7]
[311876646,1705484294435,-274.09542517,0.00025,7]
[311876647,1705484294457,-500.0,0.00025137,7]
[311876648,1705484294498,-564.78,0.00025205,7]
[311876649,1705484294550,-564.78,0.00025479,7]
[311876650,1705484294600,-564.78,0.00025753,7]
[311876651,1705484294638,-205.0,0.00025902,9]
[311876652,1705484294675,-564.78,0.00026027,7]
[311876653,1705484294723,-564.78,0.00026301,7]
[311876654,1705484294761,-500.0,0.00026353,7]
[311876655,1705484294794,-564.78,0.00026575,7]
[311876656,1705484294842,-564.78,0.00026849,7]
[311876770,1705484362650,5796.0,0.00025,30]
[311876938,1705484373983,205.0,0.00019657,2]
[311876939,1705484374532,205.0,0.0002542,10]
[311876940,1705484378915,276.53,0.00018402,2]
[311876941,1705484379089,5797.0,0.00025,30]
[311876942,1705484401949,576.23555824,0.00026849,7]
[311876943,1705484402310,571.42289537,0.00026849,7]
[311876944,1705484458544,1000.0,0.00021917,7]
[311876945,1705484458837,1000.0,0.00022191,7]
[311876946,1705484459154,1000.0,0.00022465,7]
[311876947,1705484459404,1000.0,0.00022739,7]
[311876948,1705484459651,549.20661553,0.00023013,7]
[311876949,1705484543801,446.48,0.00020235,10]
[311876950,1705484543982,446.48,0.00020731,10]
[311876951,1705484544205,446.48,0.00021227,10]
[311876952,1705484544570,446.48,0.00021722,10]
[311876953,1705484544970,446.48,0.00022218,10]
[311876955,1705484669932,500.0,0.00021917,7]
[311876956,1705484670316,500.0,0.00022191,7]
[311876957,1705484670889,500.0,0.00022465,7]
[311876958,1705484671142,500.0,0.00022739,7]
[311876959,1705484671383,500.0,0.00023013,7]
[311876960,1705484671655,500.0,0.00023287,7]
[311876961,1705484671959,500.0,0.00023561,7]
[311876962,1705484672182,500.0,0.00023835,7]
[311876963,1705484672450,500.0,0.00024109,7]
[311876964,1705484672728,500.0,0.00024383,7]
[311876965,1705484672981,500.0,0.00024657,7]
[311876966,1705484673279,500.0,0.00024931,7]
[311876967,1705484673641,500.0,0.00025205,7]
[311876968,1705484673972,500.0,0.00025479,7]
[311876969,1705484674169,500.0,0.00025753,7]
[311876970,1705484674422,500.0,0.00026027,7]
[311876971,1705484674681,500.0,0.00026301,7]
[311876972,1705484674937,500.0,0.00026575,7]
[311876973,1705484675576,500.0,0.00026849,7]
[311876974,1705484771765,157.1,0.00020052,2]
[311876975,1705484819016,150.0,0.00020026,2]
[311876976,1705484829245,166.79,0.00020038,2]
[311876977,1705484846248,176.27,0.00019446,2]
[311876978,1705484847534,352.33,0.00019994,2]
[311876979,1705484868950,5728.45,0.00020042,2]
[311876980,1705484908819,150.9121698,0.00027,7]
[311876981,1705484943331,1000.0,0.00027,7]
[311876982,1705485015951,307.88,0.00018169,2]
[311877012,1705485032382,-383.019,0.00020087,2]
[311877020,1705485037482,-295.46237176,0.00020086,2]
[311877021,1705485037491,-120.82136235,0.00020087,2]
[311877022,1705485037501,-605.75862512,0.00020092,2]
[311877023,1705485037661,-23294.24137488,0.00020092,2]
[311877024,1705485037672,-447.33,0.00020101,2]
[311877025,1705485037681,-250.0,0.00020101,2]
[311877026,1705485037690,-300.0,0.00020115,2]
[311877027,1705485037699,-3831.29,0.00020123,2]
[311877028,1705485037708,-162.46277825,0.00020124,2]
[311877029,1705485037717,-161.71,0.00020202,2]
[311877030,1705485037726,-2478.67,0.00020216,2]
[311877031,1705485037737,-800.0,0.00020224,2]
[311877032,1705485037746,-150.0,0.00020247,2]
[311877033,1705485037755,-451.96,0.00020253,2]
[311877034,1705485037764,-500.0,0.00020274,2]
[311877035,1705485037774,-161.17,0.00020415,2]
[311877036,1705485037782,-307.88,0.00020433,2]
[311877037,1705485037792,-154.79,0.00020446,2]
[311877038,1705485037801,-250.0,0.000205,2]
[311877039,1705485037810,-2000.0,0.00020548,2]
[311877040,1705485037818,-155.38,0.00020639,2]
[311877041,1705485037828,-154.79,0.00020702,2]
[311877042,1705485037837,-200.0,0.00020774,2]
[311877043,1705485037846,-499.99,0.00020858,2]
[311877044,1705485037855,-154.79,0.00020957,2]
[311877045,1705485037867,-159.19,0.00021023,2]
[311877046,1705485037877,-154.79,0.00021213,2]
[311877047,1705485037886,-998.37881316,0.00021232,3]
[311877048,1705485037895,-451.96,0.00021232,2]
[311877049,1705485037906,-154.79,0.00021469,2]
[311877050,1705485037915,-500.0,0.0002149,2]
[311877051,1705485037924,-276.0,0.00021504,2]
[311877052,1705485037934,-1372.51012316,0.00021525,2]
[311877053,1705485037944,-206.0,0.00021538,2]
[311877055,1705485037954,-202.0,0.00021538,2]
[311877057,1705485037962,-151.39,0.00021644,2]
[311877059,1705485037971,-1372.51012316,0.00021686,2]
[311877061,1705485037981,-154.79,0.00021724,2]
[311877063,1705485037990,-155.0,0.00021815,2]
[311877065,1705485037999,-155.0,0.00021815,2]
[311877067,1705485038008,-157.11544536,0.00021815,2]
[311877069,1705485038017,-158.74904518,0.00021815,2]
[311877071,1705485038027,-338.40757311,0.00021815,2]
[311877073,1705485038036,-249.84044134,0.00021816,2]
[311877075,1705485038045,-10496.4407031,0.00021816,2]
[311877077,1705485038055,-250.0,0.00021817,2]
[311877079,1705485038064,-5000.0,0.00021817,2]
[311877081,1705485038073,-500.0,0.00021817,2]
[311877083,1705485038082,-71344.0074,0.00021817,2]
[311877085,1705485038091,-83642.2155,0.00021817,2]
[311877087,1705485038101,-8394.09687193,0.00021817,2]
[311877089,1705485038110,-573.36,0.00021916,2]
[311877091,1705485038119,-965.55490014,0.00021916,2]
[311877093,1705485038129,-522.2209201,0.00021917,2]
[311877095,1705485038138,-500.0,0.00021917,2]
[311877097,1705485038148,-771.3,0.00021917,2]
[311877099,1705485038158,-237.60266056,0.00021917,2]
[311877101,1705485038169,-744.52,0.00021917,2]
[311877103,1705485038178,-519.34707122,0.00021917,2]
[311877105,1705485038187,-500.0,0.00021917,2]
[311877107,1705485038196,-500.0,0.00021917,2]
[311877109,1705485038206,-500.0,0.00021917,2]
[311877111,1705485038215,-500.0,0.00021917,2]
[311877113,1705485038224,-500.0,0.00021917,2]
[311877116,1705485038233,-267.27484838,0.00021917,2]
[311877117,1705485038242,-500.0,0.00021917,2]
[311877120,1705485038251,-500.0,0.00021917,2]
[311877121,1705485038261,-500.0,0.00021917,2]
[311877123,1705485038270,-500.0,0.00021917,2]
[311877125,1705485038280,-550.6,0.00021917,2]
[311877128,1705485038289,-558.25,0.00021917,2]
[311877130,1705485038298,-571.43,0.00021917,2]
[311877132,1705485038308,-500.0,0.00021917,2]
[311877133,1705485038317,-500.0,0.00021917,2]
[311877136,1705485038326,-500.0,0.00021917,2]
[311877137,1705485038335,-500.0,0.00021917,2]
[311877139,1705485038344,-500.0,0.00021917,2]
[311877141,1705485038354,-500.0,0.00021917,2]
[311877143,1705485038365,-500.0,0.00021917,2]
[311877145,1705485038374,-500.0,0.00021917,2]
[311877147,1705485038383,-801.85,0.00021917,2]
[311877149,1705485038393,-500.0,0.00021917,2]
[311877151,1705485038402,-500.0,0.00021917,2]
[311877153,1705485038411,-500.0,0.00021917,2]
[311877155,1705485038422,-500.0,0.00021917,2]
[311877157,1705485038432,-500.0,0.00021917,2]
[311877159,1705485038441,-500.0,0.00021917,2]
[311877161,1705485038450,-500.0,0.00021917,2]
[311877163,1705485038459,-500.0,0.00021917,2]
[311877165,1705485038468,-1380.61,0.00021917,2]
[311877167,1705485038477,-909.15,0.00021917,2]
[311877169,1705485038486,-621.98,0.00021917,2]
[311877171,1705485038495,-500.0,0.00021917,2]
[311877173,1705485038503,-500.0,0.00021917,2]
[311877175,1705485038512,-606.4,0.00021917,2]
[311877177,1705485038521,-500.0,0.00021917,2]
[311877179,1705485038530,-500.0,0.00021917,2]
[311877181,1705485038539,-1195.55,0.00021917,2]
[311877184,1705485038549,-644.26608813,0.00021917,2]
[311877185,1705485038558,-500.0,0.00021917,2]
[311877187,1705485038567,-553.34,0.00021917,2]
[311877189,1705485038576,-500.0,0.00021917,2]
[311877191,1705485038585,-500.0,0.00021917,2]
[311877193,1705485038594,-500.0,0.00021917,2]
[311877195,1705485038603,-598.74,0.00021917,2]
[311877197,1705485038612,-500.0,0.00021917,2]
[311877200,1705485038622,-622.74,0.00021917,2]
[311877201,1705485038630,-500.0,0.00021917,2]
[311877204,1705485038641,-500.0,0.00021917,2]
[311877206,1705485038650,-500.0,0.00021917,2]
[311877207,1705485038659,-500.0,0.00021917,2]
[311877209,1705485038671,-500.0,0.00021917,2]
[311877212,1705485038681,-500.0,0.00021917,2]
[311877213,1705485038690,-767.85,0.00021917,2]
[311877215,1705485038699,-500.0,0.00021917,2]
[311877217,1705485038708,-500.0,0.00021917,2]
[311877219,1705485038717,-566.86,0.00021917,2]
[311877221,1705485038727,-500.0,0.00021917,2]
[311877223,1705485038736,-500.0,0.00021917,2]
[311877225,1705485038745,-560.11,0.00021917,2]
[311877227,1705485038754,-583.94,0.00021917,2]
[311877229,1705485038763,-551.3034812,0.00021917,2]
[311877231,1705485038771,-500.0,0.00021917,2]
[311877233,1705485038780,-500.0,0.00021917,2]
[311877235,1705485038789,-500.0,0.00021917,2]
[311877237,1705485038799,-500.0,0.00021917,2]
[311877239,1705485038808,-500.0,0.00021917,2]
[311877241,1705485038818,-500.0,0.00021917,2]
[311877244,1705485038828,-500.0,0.00021917,2]
[311877246,1705485038838,-500.0,0.00021917,2]
[311877248,1705485038848,-667.12,0.00021917,2]
[311877250,1705485038857,-500.0,0.00021917,2]
[311877251,1705485038869,-500.0,0.00021917,2]
[311877253,1705485038878,-500.0,0.00021917,2]
[311877255,1705485038887,-500.0,0.00021917,2]
[311877257,1705485038896,-500.0,0.00021917,2]
[311877260,1705485038906,-500.0,0.00021917,2]
[311877261,1705485038915,-500.0,0.00021917,2]
[311877264,1705485038926,-500.0,0.00021917,2]
[311877266,1705485038935,-500.0,0.00021917,2]
[311877267,1705485038946,-500.0,0.00021917,2]
[311877269,1705485038956,-525.16,0.00021917,2]
[311877272,1705485038965,-500.0,0.00021917,2]
[311877273,1705485038974,-512.7,0.00021917,2]
[311877275,1705485038983,-506.21250597,0.00021917,2]
[311877278,1705485038994,-500.0,0.00021917,2]
[311877279,1705485039004,-500.0,0.00021917,2]
[311877282,1705485039013,-500.0,0.00021917,2]
[311877283,1705485039023,-500.0,0.00021917,2]
[311877285,1705485039035,-500.0,0.00021917,2]
[311877287,1705485039045,-500.0,0.00021917,2]
[311877288,1705485039053,-500.0,0.00021917,2]
[311877289,1705485039062,-797.78,0.00021917,2]